bitfinex/quotes_BTCUSD_20250114
["timestamp","ask_amount","ask_price","bid_price","bid_amount"]
[1736859081878,0.001,96302.0,96301.0,0.55878923]
[1736859082069,0.00708,96302.0,96301.0,0.55878923]
[1736859083336,0.00708,96302.0,96301.0,0.65205109]
[1736859084144,0.00708,96302.0,96301.0,0.55878923]
[1736859085586,0.00708,96302.0,96301.0,0.65203697]
[1736859086221,0.00708,96302.0,96301.0,0.55878923]
[1736859086627,0.00708,96302.0,96301.0,0.65203697]
[1736859087964,0.00708,96302.0,96301.0,0.55878923]
[1736859088970,0.00708,96302.0,96301.0,0.40878923]
[1736859093999,0.001,96302.0,96301.0,0.40878923]
[1736859095961,0.001,96302.0,96301.0,0.55878923]
[1736859096164,0.001,96302.0,96301.0,0.73976923]
[1736859096736,0.001,96302.0,96301.0,0.69596023]
[1736859096936,0.001,96302.0,96301.0,0.92922603]
[1736859097389,0.001,96302.0,96301.0,0.89987403]
[1736859097546,0.00906093,96306.0,96302.0,0.15]
[1736859097733,0.00906093,96306.0,96305.0,0.357673]
[1736859097925,0.00906093,96306.0,96305.0,0.46189992]
[1736859099010,0.00906093,96306.0,96305.0,0.46389992]
[1736859099991,0.00906093,96306.0,96305.0,0.46789992]
[1736859100523,0.00906093,96306.0,96305.0,0.60768888]
[1736859100696,0.00906093,96306.0,96305.0,0.62887861]
[1736859100904,0.00906093,96306.0,96305.0,0.60768888]
[1736859101293,0.00906093,96306.0,96305.0,0.46789992]
[1736859102113,0.00906093,96306.0,96305.0,0.156]
[1736859102317,0.01514093,96306.0,96305.0,0.156]
[1736859102741,0.01514093,96306.0,96305.0,0.152]
[1736859103098,0.01514093,96306.0,96305.0,0.155]
[1736859103299,0.01514093,96306.0,96305.0,0.152]
[1736859103541,0.01514093,96306.0,96305.0,0.15]
[1736859104999,0.01514093,96306.0,96305.0,0.151]
[1736859105484,0.01514093,96306.0,96305.0,0.15]
[1736859108470,0.01514093,96306.0,96304.0,0.207674]
[1736859113969,0.01514093,96306.0,96304.0,0.20946677]
[1736859114567,0.01514093,96306.0,96304.0,0.21146677]
[1736859115353,0.01514093,96306.0,96304.0,0.21246677]
[1736859116715,0.00906093,96306.0,96304.0,0.21246677]
[1736859116916,0.00608,96305.0,96304.0,0.21246677]
[1736859118231,0.00608,96305.0,96304.0,0.21146677]
[1736859118438,0.00608,96305.0,96304.0,0.21246677]
[1736859119225,0.00608,96305.0,96304.0,0.21046677]
[1736859119760,0.00608,96305.0,96304.0,0.21246677]
[1736859122005,0.0088628,96305.0,96304.0,0.00479277]
[1736859122657,0.0569628,96305.0,96304.0,0.00479277]
[1736859122841,0.0569628,96305.0,96304.0,0.00279277]
[1736859123260,0.0619628,96305.0,96304.0,0.00279277]
[1736859123671,0.0569628,96305.0,96304.0,0.00279277]
[1736859124090,0.0619628,96305.0,96304.0,0.00279277]
[1736859124311,0.0569628,96305.0,96304.0,0.00279277]
[1736859124718,0.0569628,96305.0,96304.0,0.00179277]
[1736859125182,0.0589628,96305.0,96304.0,0.00179277]
[1736859125758,0.0639628,96305.0,96304.0,0.00179277]
[1736859125960,0.0589628,96305.0,96304.0,0.00179277]
[1736859126393,0.0639628,96305.0,96304.0,0.00179277]
[1736859126601,0.0569628,96305.0,96304.0,0.00179277]
[1736859126805,0.0579628,96305.0,96304.0,0.00179277]
[1736859127012,0.0629628,96305.0,96304.0,0.00179277]
[1736859127226,0.0579628,96305.0,96304.0,0.00179277]
[1736859127419,0.0619628,96305.0,96304.0,0.00179277]
[1736859127654,0.0639628,96305.0,96304.0,0.00179277]
[1736859128509,0.0619628,96305.0,96304.0,0.00179277]
[1736859128928,0.0569628,96305.0,96304.0,0.00179277]
[1736859129131,0.0619628,96305.0,96304.0,0.00179277]
[1736859129549,0.0558828,96305.0,96304.0,0.00179277]
[1736859129752,0.0639628,96305.0,96304.0,0.00179277]
[1736859129986,0.0589628,96305.0,96304.0,0.00179277]
[1736859130173,0.0619628,96305.0,96304.0,0.00179277]
[1736859130585,0.0047828,96305.0,96304.0,0.00179277]
[1736859130818,0.0158628,96305.0,96304.0,0.00179277]
[1736859131038,0.0138628,96305.0,96304.0,0.00179277]
[1736859131266,0.0158628,96305.0,96304.0,0.00179277]
[1736859131452,0.0097828,96305.0,96304.0,0.00179277]
[1736859131666,0.0158628,96305.0,96304.0,0.00179277]
[1736859132091,0.01308,96305.0,96304.0,0.01200033]
[1736859132305,0.00808,96305.0,96304.0,0.01200033]
[1736859132944,0.00608,96305.0,96304.0,0.01200033]
[1736859133165,0.00808,96305.0,96304.0,0.01200033]
[1736859133814,0.00808,96305.0,96304.0,0.09250033]
[1736859134023,0.00608,96305.0,96304.0,0.09250033]
[1736859135415,0.00906093,96306.0,96304.0,0.09250033]
[1736859135416,0.00906093,96306.0,96305.0,0.207673]
[1736859135545,0.01514093,96306.0,96305.0,0.207673]
[1736859136694,0.01514093,96306.0,96305.0,0.210673]
[1736859136986,0.01514093,96306.0,96305.0,0.207673]
[1736859137206,0.01714093,96306.0,96305.0,0.208673]
[1736859138166,0.01714093,96306.0,96305.0,0.43503825]
[1736859138391,0.01714093,96306.0,96305.0,0.43399992]
[1736859139036,0.01514093,96306.0,96305.0,0.43299992]
[1736859139254,0.01514093,96306.0,96305.0,0.57278888]
[1736859139485,0.01514093,96306.0,96305.0,0.57378888]
[1736859139711,0.01514093,96306.0,96305.0,0.57478888]
[1736859139933,0.01514093,96306.0,96305.0,0.43299992]
[1736859140141,0.01514093,96306.0,96305.0,0.43799992]
[1736859142185,0.01514093,96306.0,96305.0,0.62460854]
[1736859142646,0.01514093,96306.0,96305.0,0.43799992]
[1736859143052,0.00906093,96306.0,96305.0,0.43799992]
[1736859143434,0.00906093,96306.0,96305.0,0.58799992]
[1736859144087,0.00906093,96306.0,96305.0,0.82126572]
[1736859145399,0.00906093,96306.0,96305.0,0.58799992]
[1736859146814,0.00906093,96306.0,96305.0,0.82127273]
[1736859148192,0.00906093,96306.0,96305.0,0.23827281]
[1736859148409,0.01514093,96306.0,96305.0,0.23827281]
[1736859148624,0.09264093,96306.0,96305.0,0.1916066]
[1736859148846,0.09264093,96306.0,96305.0,0.19339916]
[1736859149053,0.09578211,96306.0,96305.0,0.19339916]
[1736859149231,0.08970211,96306.0,96305.0,0.19339916]
[1736859149458,0.09578211,96306.0,96305.0,0.19339916]
[1736859149661,0.09578211,96306.0,96305.0,0.00679256]
[1736859149793,0.14108211,96306.0,96305.0,0.00679256]
[1736859150408,0.14108211,96306.0,96305.0,0.00379256]
[1736859150808,0.14308211,96306.0,96305.0,0.00379256]
[1736859151173,0.14308211,96306.0,96305.0,0.00179256]
[1736859153394,0.27030903,96306.0,96305.0,0.00179256]
[1736859155684,0.26830903,96306.0,96305.0,0.00179256]
[1736859156392,0.27730903,96306.0,96305.0,0.00279256]
[1736859156590,0.28130903,96306.0,96305.0,0.00279256]
[1736859157195,0.27730903,96306.0,96305.0,0.00279256]
[1736859157426,0.27130903,96306.0,96305.0,0.00179256]
[1736859157603,0.27930903,96306.0,96305.0,0.00279256]
[1736859158150,0.15208211,96306.0,96305.0,0.00279256]
[1736859158335,0.02928211,96306.0,96305.0,0.00279256]
[1736859159070,0.01828211,96306.0,96305.0,0.00179256]
[1736859159272,0.02928211,96306.0,96305.0,0.00279256]
[1736859159566,0.02128211,96306.0,96305.0,0.00179256]
[1736859159792,0.01828211,96306.0,96305.0,0.00279256]
[1736859159967,0.02428211,96306.0,96305.0,0.00279256]
[1736859160170,0.02628211,96306.0,96305.0,0.00279256]
[1736859160578,0.02028211,96306.0,96305.0,0.00179256]
[1736859161569,0.01420211,96306.0,96305.0,0.00179256]
[1736859161779,0.02028211,96306.0,96305.0,0.00179256]
[1736859162324,0.01828211,96306.0,96305.0,0.00179256]
[1736859162496,0.01220211,96306.0,96305.0,0.00179256]
[1736859162701,0.02328211,96306.0,96305.0,0.00179256]
[1736859163523,0.01828211,96306.0,96305.0,0.00179256]
[1736859163697,0.02028211,96306.0,96305.0,0.00179256]
[1736859163901,0.02328211,96306.0,96305.0,0.00179256]
[1736859164107,0.02128211,96306.0,96305.0,0.00179256]
[1736859164468,0.02228211,96306.0,96305.0,0.00179256]
[1736859165097,0.01828211,96306.0,96305.0,0.00179256]
[1736859165270,0.01928211,96306.0,96305.0,0.00179256]
[1736859165496,0.02228211,96306.0,96305.0,0.00179256]
[1736859165705,0.01928211,96306.0,96305.0,0.00179256]
[1736859166086,0.10478211,96306.0,96305.0,0.00179256]
[1736859166696,0.10378211,96306.0,96305.0,0.00179256]
[1736859166856,0.10078211,96306.0,96305.0,0.00179256]
[1736859167054,0.10178211,96306.0,96305.0,0.00179256]
[1736859167591,0.10378211,96306.0,96305.0,0.00179256]
[1736859167969,0.10478211,96306.0,96305.0,0.00179256]
[1736859172975,0.23200903,96306.0,96305.0,0.00179256]
[1736859173858,0.22900903,96306.0,96305.0,0.00179256]
[1736859174057,0.27710903,96306.0,96305.0,0.00179256]
[1736859174298,0.28610903,96306.0,96305.0,0.00279256]
[1736859174474,0.28110903,96306.0,96305.0,0.00179256]
[1736859175968,0.28610903,96306.0,96305.0,0.00279256]
[1736859176216,0.27710903,96306.0,96305.0,0.00179256]
[1736859176447,0.28610903,96306.0,96305.0,0.00279256]
[1736859176675,0.29010903,96306.0,96305.0,0.00279256]
[1736859178923,0.28110903,96306.0,96305.0,0.00179256]
[1736859179122,0.27710903,96306.0,96305.0,0.00179256]
[1736859179346,0.28610903,96306.0,96305.0,0.00279256]
[1736859180497,0.29010903,96306.0,96305.0,0.00279256]
[1736859181004,0.28610903,96306.0,96305.0,0.00279256]
[1736859181331,0.29010903,96306.0,96305.0,0.00279256]
[1736859183438,0.39010903,96306.0,96305.0,0.00279256]
[1736859185479,0.64010903,96306.0,96305.0,0.00279256]
[1736859191507,0.63402903,96306.0,96305.0,0.00279256]
[1736859191714,0.02520211,96306.0,96305.0,0.00279256]
[1736859192072,0.03128211,96306.0,96305.0,0.00279256]
[1736859192948,0.02728211,96306.0,96305.0,0.00279256]
[1736859193193,0.02028211,96306.0,96305.0,0.00179256]
[1736859193342,0.02528211,96306.0,96305.0,0.00279256]
[1736859193542,0.02328211,96306.0,96305.0,0.00279256]
[1736859193750,0.01828211,96306.0,96305.0,0.00179256]
[1736859193981,0.02428211,96306.0,96305.0,0.00179256]
[1736859194358,0.02028211,96306.0,96305.0,0.00179256]
[1736859194555,0.01828211,96306.0,96305.0,0.00179256]
[1736859194906,0.02328211,96306.0,96305.0,0.00179256]
[1736859196034,0.01928211,96306.0,96305.0,0.00179256]
[1736859196669,0.01820211,96306.0,96305.0,0.00179256]
[1736859196823,0.01828211,96306.0,96305.0,0.00179256]
[1736859197267,0.02228211,96306.0,96305.0,0.00179256]
[1736859197478,0.01828211,96306.0,96305.0,0.00179256]
[1736859197685,0.02028211,96306.0,96305.0,0.00179256]
[1736859197990,0.02328211,96306.0,96305.0,0.00179256]
[1736859198201,0.01520211,96306.0,96305.0,0.08249256]
[1736859198317,0.02128211,96306.0,96305.0,0.12809256]
[1736859198747,0.01814093,96306.0,96305.0,0.12809256]
[1736859199154,0.01514093,96306.0,96305.0,0.12809256]
[1736859199573,0.01714093,96306.0,96305.0,0.13843461]
[1736859199811,0.01514093,96306.0,96305.0,0.13843461]
[1736859200014,0.01614093,96306.0,96305.0,0.13843461]
[1736859200214,0.01614093,96306.0,96305.0,0.14043461]
[1736859200418,0.01614093,96306.0,96305.0,0.13843461]
[1736859200621,0.01514093,96306.0,96305.0,0.13843461]
[1736859200955,0.01814093,96306.0,96305.0,0.13843461]
[1736859201162,0.01614093,96306.0,96305.0,0.13843461]
[1736859201376,0.01514093,96306.0,96305.0,0.13843461]
[1736859203929,0.01514093,96306.0,96305.0,0.08249256]
[1736859206379,0.01782159,96306.0,96305.0,0.08249256]
[1736859206842,0.01882159,96306.0,96305.0,0.08249256]
[1736859207244,0.01274159,96306.0,96305.0,0.08249256]
[1736859207374,0.01882159,96306.0,96305.0,0.08249256]
[1736859207605,0.02082159,96306.0,96305.0,0.08249256]
[1736859208114,0.01982159,96306.0,96305.0,0.08249256]
[1736859208352,0.01882159,96306.0,96305.0,0.08249256]
[1736859209942,0.02082159,96306.0,96305.0,0.08249256]
[1736859210386,0.02082159,96306.0,96305.0,0.00179256]
[1736859211183,0.01782159,96306.0,96305.0,0.00179256]
[1736859211391,0.01882159,96306.0,96305.0,0.00179256]
[1736859211589,0.02082159,96306.0,96305.0,0.00179256]
[1736859214786,0.01474159,96306.0,96305.0,0.08319256]
[1736859214995,0.01814093,96306.0,96305.0,0.08319256]
[1736859215364,0.01814093,96306.0,96305.0,0.33946556]
[1736859215744,0.01714093,96306.0,96305.0,0.33946556]
[1736859216152,0.01614093,96306.0,96305.0,0.33946556]
[1736859216561,0.01714093,96306.0,96305.0,0.34994469]
[1736859216780,0.01514093,96306.0,96305.0,0.34994469]
[1736859217147,0.01514093,96306.0,96305.0,0.13179256]
[1736859217405,0.01514093,96306.0,96305.0,0.13379256]
[1736859217851,0.01514093,96306.0,96305.0,0.13479256]
[1736859218047,0.01514093,96306.0,96305.0,0.13279256]
[1736859218560,0.01514093,96306.0,96305.0,0.00279256]
[1736859218997,0.01782308,96306.0,96305.0,0.00179256]
[1736859219439,0.01782308,96306.0,96305.0,0.00579256]
[1736859219657,0.01782308,96306.0,96305.0,0.00279256]
[1736859219879,0.01782308,96306.0,96305.0,0.00179256]
[1736859220094,0.01982308,96306.0,96305.0,0.00179256]
[1736859220336,0.01782308,96306.0,96305.0,0.00179256]
[1736859220564,0.01982308,96306.0,96305.0,0.00179256]
[1736859221212,0.02182308,96306.0,96305.0,0.00179256]
[1736859221434,0.23155,96306.0,96305.0,0.00179256]
[1736859222560,0.22955,96306.0,96305.0,0.00179256]
[1736859223020,0.23455,96306.0,96305.0,0.00279256]
[1736859246806,0.12297,96306.0,96305.0,0.00279256]
[1736859247010,0.02482308,96306.0,96305.0,0.00279256]
[1736859247966,0.02282308,96306.0,96305.0,0.00279256]
[1736859248378,0.02482308,96306.0,96305.0,0.00279256]
[1736859248513,0.01982308,96306.0,96305.0,0.00179256]
[1736859250053,0.01782308,96306.0,96305.0,0.00179256]
[1736859250290,0.02082308,96306.0,96305.0,0.00179256]
[1736859250455,0.02182308,96306.0,96305.0,0.00179256]
[1736859251084,0.14905,96306.0,96305.0,0.00179256]
[1736859260473,0.57855,96306.0,96305.0,0.00179256]
[1736859260673,0.62785,96306.0,96305.0,0.00179256]
[1736859261372,0.63817025,96306.0,96305.0,0.00179256]
[1736859261589,0.63417025,96306.0,96305.0,0.00179256]
[1736859261993,0.63917025,96306.0,96305.0,0.00179256]
[1736859263195,0.63417025,96306.0,96305.0,0.00179256]
[1736859263576,0.75239717,96306.0,96305.0,0.00179256]
[1736859269033,0.98503875,96306.0,96305.0,0.00179256]
[1736859269260,1.31023875,96306.0,96305.0,5.6e-07]
[1736859269667,1.31023875,96306.0,96304.0,3.3e-07]
[1736859269887,0.86862684,96305.0,96304.0,3.3e-07]
[1736859270344,0.35,96300.0,96299.0,3e-08]
[1736859270597,0.6055305,96300.0,96299.0,3e-08]
[1736859271154,0.74507821,96300.0,96299.0,3e-08]
[1736859273396,0.6105305,96300.0,96299.0,3e-08]
[1736859273595,0.71475742,96300.0,96299.0,3e-08]
[1736859274001,0.71875742,96300.0,96299.0,3e-08]
[1736859274228,1.03495742,96300.0,96299.0,3e-08]
[1736859274386,0.68272,96283.0,96281.0,4.9e-07]
[1736859274598,0.81322699,96283.0,96281.0,4.9e-07]
[1736859275394,0.83405604,96283.0,96281.0,4.9e-07]
[1736859275617,0.83405604,96283.0,96282.0,0.00192742]
[1736859276882,0.84418805,96283.0,96282.0,0.00192742]
[1736859277454,0.85018805,96283.0,96282.0,0.00292742]
[1736859277674,0.85918805,96283.0,96282.0,0.00292742]
[1736859277868,0.85018805,96283.0,96282.0,0.00292742]
[1736859278304,0.95441497,96283.0,96282.0,0.00292742]
[1736859278523,0.96341497,96283.0,96282.0,0.00292742]
[1736859279287,1.28861497,96283.0,96282.0,0.00292742]
[1736859280967,1.28861497,96283.0,96282.0,4.2e-07]
[1736859284548,0.1,96263.0,96253.0,0.00141282]
[1736859284763,0.023,96255.0,96253.0,0.00141282]
[1736859284970,0.12722692,96254.0,96253.0,0.00191269]
[1736859285176,0.13045995,96254.0,96253.0,0.00191269]
[1736859285793,0.33824295,96254.0,96253.0,0.00191269]
[1736859287311,0.33924295,96254.0,96253.0,0.00191269]
[1736859288458,0.33824295,96254.0,96253.0,0.00191269]
[1736859289304,0.34124295,96254.0,96253.0,0.00191269]
[1736859290307,0.34224295,96254.0,96253.0,0.00191269]
[1736859301121,0.41802314,96254.0,96253.0,0.00191269]
[1736859301322,0.44224295,96254.0,96253.0,0.00191269]
[1736859301520,0.59224295,96254.0,96253.0,0.00191269]
[1736859301949,0.60257041,96254.0,96253.0,0.00191269]
[1736859302551,0.59957041,96254.0,96253.0,0.00191269]
[1736859302758,0.60557041,96254.0,96253.0,0.00191269]
[1736859303408,0.60857041,96254.0,96253.0,0.00191269]
[1736859304216,0.68937041,96254.0,96253.0,0.00191269]
[1736859304432,0.79359733,96254.0,96253.0,0.00191269]
[1736859304640,0.89359733,96254.0,96253.0,0.00191269]
[1736859305431,0.89059733,96254.0,96253.0,0.00191269]
[1736859305643,0.60257041,96254.0,96253.0,0.00191269]
[1736859305828,0.61765041,96254.0,96253.0,0.00191269]
[1736859306211,0.71765041,96254.0,96253.0,0.00191269]
[1736859306595,0.61765041,96254.0,96253.0,0.00191269]
[1736859306802,0.71765041,96254.0,96253.0,0.00191269]
[1736859307300,0.70732295,96254.0,96253.0,0.00191269]
[1736859308658,0.35124295,96254.0,96253.0,0.00191269]
[1736859308864,0.78252295,96254.0,96253.0,0.00191269]
[1736859309090,1.03674987,96254.0,96253.0,0.00191269]
[1736859309294,1.11332295,96254.0,96253.0,0.00191269]
[1736859310797,1.17538271,96254.0,96253.0,0.00191269]
[1736859310957,1.17321382,96254.0,96253.0,0.00191269]
[1736859311528,1.16921382,96254.0,96253.0,6.9e-07]
[1736859311769,1.10715406,96254.0,96253.0,6.9e-07]
[1736859312003,1.23958598,96254.0,96253.0,6.9e-07]
[1736859312263,1.21738098,96254.0,96253.0,6.9e-07]
[1736859312512,0.5808,96246.0,96245.0,0.00050505]
[1736859312748,1.09152663,96246.0,96245.0,5e-08]
[1736859312999,1.09471242,96246.0,96245.0,5e-08]
[1736859313234,0.3794,96236.0,96235.0,9.1e-07]
[1736859313459,0.50662692,96236.0,96235.0,9.1e-07]
[1736859313725,0.46119756,96236.0,96235.0,9.1e-07]
[1736859313963,0.38039756,96236.0,96235.0,9.1e-07]
[1736859314445,0.40071233,96236.0,96235.0,9.1e-07]
[1736859314652,0.40679233,96236.0,96235.0,9.1e-07]
[1736859315123,0.40071233,96236.0,96235.0,9.1e-07]
[1736859315399,0.40679233,96236.0,96235.0,9.1e-07]
[1736859315926,0.41579233,96236.0,96235.0,9.1e-07]
[1736859316155,0.40679233,96236.0,96235.0,9.1e-07]
[1736859316407,0.41979233,96236.0,96235.0,9.1e-07]
[1736859317626,0.45192852,96236.0,96235.0,9.1e-07]
[1736859317853,0.41579233,96236.0,96235.0,9.1e-07]
[1736859318092,0.40979233,96236.0,96235.0,9.1e-07]
[1736859318349,0.41879233,96236.0,96235.0,9.1e-07]
[1736859318584,0.41579233,96236.0,96235.0,9.1e-07]
[1736859318812,0.41079233,96236.0,96235.0,9.1e-07]
[1736859319008,0.41979233,96236.0,96235.0,9.1e-07]
[1736859319274,0.40679233,96236.0,96235.0,9.1e-07]
[1736859319514,0.30071233,96236.0,96235.0,9.1e-07]
[1736859319788,0.29947756,96236.0,96235.0,9.1e-07]
[1736859320913,0.29547756,96236.0,96235.0,9.1e-07]
[1736859321380,0.00617064,96236.0,96235.0,0.07940091]
[1736859321594,0.02125064,96236.0,96235.0,0.12930091]
[1736859322026,0.01517064,96236.0,96235.0,0.12930091]
[1736859322228,0.02125064,96236.0,96235.0,0.12930091]
[1736859322451,0.00925064,96236.0,96235.0,0.12930091]
[1736859322653,0.01225064,96236.0,96235.0,0.12930091]
[1736859322788,0.02125064,96236.0,96235.0,0.12930091]
[1736859322983,0.01225064,96236.0,96235.0,0.12930091]
[1736859323375,0.01725064,96236.0,96235.0,0.12930091]
[1736859324115,0.01425064,96236.0,96235.0,0.12930091]
[1736859324313,0.01525064,96236.0,96235.0,0.12930091]
[1736859324907,0.01425064,96236.0,96235.0,0.12930091]
[1736859325379,0.01025064,96236.0,96235.0,0.12930091]
[1736859325626,0.01525064,96236.0,96235.0,0.12930091]
[1736859328506,0.01425064,96236.0,96235.0,0.12930091]
[1736859328760,0.01525064,96236.0,96235.0,0.12930091]
[1736859328981,0.01025064,96236.0,96235.0,0.12930091]
[1736859329220,0.01025064,96236.0,96235.0,0.13015491]
[1736859329470,0.01525064,96236.0,96235.0,0.13015491]
[1736859329710,0.01204405,96236.0,96235.0,0.13015491]
[1736859329958,0.01704405,96236.0,96235.0,0.13015491]
[1736859330966,0.01604405,96236.0,96235.0,0.13015491]
[1736859331129,0.01704405,96236.0,96235.0,0.13015491]
[1736859331535,0.01204405,96236.0,96235.0,0.13015491]
[1736859332024,0.01704405,96236.0,96235.0,0.13015491]
[1736859332220,0.01204405,96236.0,96235.0,0.13015491]
[1736859332467,0.01604405,96236.0,96235.0,0.13015491]
[1736859332675,0.01104405,96236.0,96235.0,0.13015491]
[1736859332922,0.00596405,96236.0,96235.0,0.13015491]
[1736859333131,0.01200405,96236.0,96235.0,0.13015491]
[1736859333345,0.01700405,96236.0,96235.0,0.13015491]
[1736859334183,0.01600405,96236.0,96235.0,0.13015491]
[1736859334378,0.01700405,96236.0,96235.0,0.13015491]
[1736859335382,0.01200405,96236.0,96235.0,0.13015491]
[1736859335610,0.01700405,96236.0,96235.0,0.13015491]
[1736859335807,0.01200405,96236.0,96235.0,0.13015491]
[1736859336161,0.01700405,96236.0,96235.0,0.13015491]
[1736859336367,0.01200405,96236.0,96235.0,0.13015491]
[1736859336565,0.01700405,96236.0,96235.0,0.13015491]
[1736859337803,0.01600405,96236.0,96235.0,0.13015491]
[1736859338156,0.01700405,96236.0,96235.0,0.13015491]
[1736859338900,0.01200405,96236.0,96235.0,0.13015491]
[1736859339338,0.01100405,96236.0,96235.0,0.13015491]
[1736859339509,0.01600405,96236.0,96235.0,0.13015491]
[1736859340287,0.01100405,96236.0,96235.0,0.13015491]
[1736859340810,0.01200405,96236.0,96235.0,0.13015491]
[1736859341236,0.01100405,96236.0,96235.0,0.13015491]
[1736859341444,0.01200405,96236.0,96235.0,0.13015491]
[1736859341644,0.01700405,96236.0,96235.0,0.13015491]
[1736859342049,0.01200405,96236.0,96235.0,0.13015491]
[1736859342203,0.01700405,96236.0,96235.0,0.13015491]
[1736859343834,0.01096405,96236.0,96235.0,0.13015491]
[1736859344042,0.01700405,96236.0,96235.0,0.13015491]
[1736859345408,0.01096405,96236.0,96235.0,0.13015491]
[1736859345617,0.01700405,96236.0,96235.0,0.13015491]
[1736859348226,0.01700405,96236.0,96235.0,0.08025491]
[1736859348630,0.01700405,96236.0,96235.0,0.00085491]
[1736859356032,0.01096405,96236.0,96235.0,0.00085491]
[1736859356372,0.01700405,96236.0,96235.0,0.00085491]
[1736859366894,0.01383341,96236.0,96235.0,0.00085491]
[1736859367129,0.01673414,96236.0,96235.0,0.00085491]
[1736859367355,0.01383341,96236.0,96235.0,0.00085491]
[1736859368352,0.01383341,96236.0,96235.0,0.09417492]
[1736859369180,0.01674695,96236.0,96235.0,0.09417492]
[1736859369415,0.01674695,96236.0,96235.0,0.00085491]
[1736859370135,0.01070695,96236.0,96235.0,0.20867891]
[1736859370422,0.01383341,96236.0,96235.0,0.00085491]
[1736859371258,0.01283341,96236.0,96235.0,0.09417492]
[1736859371659,0.00783341,96236.0,96235.0,0.09517492]
[1736859371833,0.00783341,96236.0,96235.0,0.00185491]
[1736859372038,0.00883341,96236.0,96235.0,0.00085491]
[1736859373484,0.00883341,96236.0,96235.0,0.00185491]
[1736859373996,0.011544,96236.0,96235.0,0.00185491]
[1736859378261,0.013504,96236.0,96235.0,0.00185491]
[1736859383466,0.013504,96236.0,96235.0,0.08305491]
[1736859383668,0.013504,96236.0,96235.0,0.00185491]
[1736859386375,0.013504,96236.0,96225.0,0.13645696]
[1736859386851,0.013504,96236.0,96229.0,0.09355286]
[1736859387437,0.013504,96236.0,96224.0,0.21850044]
[1736859387792,0.012504,96236.0,96224.0,0.21850044]
[1736859388003,0.207824,96235.0,96224.0,0.01065344]
[1736859388222,0.21050041,96235.0,96229.0,0.000854]
[1736859389297,0.023,96234.0,96229.0,0.000854]
[1736859389503,0.415657,96233.0,96229.0,0.000854]
[1736859389722,0.41833679,96233.0,96229.0,0.001854]
[1736859390783,0.41833679,96233.0,96229.0,0.000854]
[1736859391415,0.21050779,96233.0,96229.0,0.000854]
[1736859391997,0.00267979,96233.0,96229.0,0.00050715]
[1736859392198,0.21050879,96233.0,96229.0,0.00150715]
[1736859392770,0.21350879,96233.0,96229.0,0.00050715]
[1736859392989,0.21450879,96233.0,96229.0,0.00050715]
[1736859393163,0.21150879,96233.0,96229.0,0.00050715]
[1736859393369,0.21550879,96233.0,96229.0,0.00050715]
[1736859393593,0.21450879,96233.0,96229.0,0.00050715]
[1736859393799,0.21550879,96233.0,96229.0,0.00050715]
[1736859394782,0.21150879,96233.0,96229.0,0.00050715]
[1736859395161,0.21550879,96233.0,96229.0,0.00050715]
[1736859395787,0.21450879,96233.0,96229.0,0.00050715]
[1736859396210,0.21850879,96233.0,96229.0,0.00050715]
[1736859396585,0.21050879,96233.0,96229.0,0.00050715]
[1736859396983,0.21150879,96233.0,96229.0,0.00050715]
[1736859397576,0.41933779,96233.0,96229.0,0.00050715]
[1736859398106,0.42333779,96233.0,96229.0,0.00050715]
[1736859400071,0.0777,96230.0,96229.0,0.00050715]
[1736859400241,0.20492692,96230.0,96229.0,0.00050715]
[1736859400446,0.20761122,96230.0,96229.0,0.00050715]
[1736859400655,0.25461122,96230.0,96229.0,0.00050715]
[1736859402239,0.26161122,96230.0,96229.0,0.00050715]
[1736859402471,0.25461122,96230.0,96229.0,0.00050715]
[1736859402679,0.27318314,96230.0,96229.0,0.00050715]
[1736859403263,0.27518314,96230.0,96229.0,0.00050715]
[1736859403969,0.29573644,96230.0,96229.0,0.00050715]
[1736859413278,0.29752985,96230.0,96229.0,0.00050715]
[1736859414287,0.30356985,96230.0,96229.0,0.00050715]
[1736859417240,0.55356985,96230.0,96229.0,0.00050715]
[1736859417448,0.65779677,96230.0,96229.0,0.00050715]
[1736859418356,0.55156985,96230.0,96229.0,0.00050715]
[1736859418581,0.54356985,96230.0,96229.0,0.00050715]
[1736859418802,0.55656985,96230.0,96229.0,0.00050715]
[1736859419188,0.55256985,96230.0,96229.0,0.00050715]
[1736859419385,0.69199159,96230.0,96229.0,0.00050715]
[1736859419622,0.69599159,96230.0,96229.0,0.00050715]
[1736859420268,0.55656985,96230.0,96229.0,0.00050715]
[1736859422819,0.88176985,96230.0,96229.0,0.00050715]
[1736859425726,0.885046,96225.0,96224.0,0.00050505]
[1736859425942,0.1,96215.0,96214.0,8.7e-07]
[1736859426154,0.54109392,96215.0,96214.0,8.7e-07]
[1736859426394,0.207877,96211.0,96207.0,0.00486091]
[1736859426591,0.20788,96209.0,96207.0,0.00486091]
[1736859426796,0.0012904,96210.0,96207.0,0.00486091]
[1736859427005,0.00241189,96208.0,96207.0,0.00486091]
[1736859427139,0.21392,96209.0,96207.0,0.00486091]
[1736859427369,0.00230748,96208.0,96207.0,0.00501073]
[1736859428173,0.00834748,96208.0,96207.0,0.00501073]
[1736859428606,0.00230748,96208.0,96207.0,0.00501073]
[1736859428797,0.08734748,96208.0,96207.0,0.00501073]
[1736859428999,0.08934748,96208.0,96207.0,0.00501073]
[1736859429167,0.2245744,96208.0,96207.0,0.00501073]
[1736859429835,0.2185344,96208.0,96207.0,0.00501073]
[1736859430065,0.2245744,96208.0,96207.0,0.00501073]
[1736859431304,0.2225744,96208.0,96207.0,0.00501073]
[1736859431707,0.2255744,96208.0,96207.0,0.00501073]
[1736859431913,0.2175744,96208.0,96207.0,0.00501073]
[1736859432376,0.2265744,96208.0,96207.0,0.00501073]
[1736859433760,0.1475744,96208.0,96207.0,0.00501073]
[1736859433960,0.01430748,96208.0,96207.0,0.00501073]
[1736859434223,0.02034748,96208.0,96207.0,0.00501073]
[1736859434749,0.01430748,96208.0,96207.0,0.00501073]
[1736859434959,0.02034748,96208.0,96207.0,0.00501073]
[1736859435154,0.01734748,96208.0,96207.0,0.00501073]
[1736859435374,0.02034748,96208.0,96207.0,0.00501073]
[1736859435573,0.01134748,96208.0,96207.0,0.00501073]
[1736859436148,0.01734748,96208.0,96207.0,0.00501073]
[1736859436354,0.10844748,96208.0,96207.0,0.00501073]
[1736859436550,0.22183426,96208.0,96207.0,0.00501073]
[1736859436753,0.26359487,96208.0,96207.0,0.00501073]
[1736859436975,0.10858804,96208.0,96207.0,0.00501073]
[1736859437292,0.00803317,96208.0,96207.0,0.00501073]
[1736859437499,0.00604,96208.0,96207.0,0.00501073]
[1736859437890,0.003,96208.0,96207.0,0.00501073]
[1736859438087,0.00904,96208.0,96207.0,0.00501073]
[1736859438301,0.01804,96208.0,96207.0,0.00501073]
[1736859438603,0.00604,96208.0,96207.0,0.00586473]
[1736859438845,0.00804,96208.0,96207.0,0.00586473]
[1736859438979,0.01704,96208.0,96207.0,0.00586473]
[1736859439182,0.00604,96208.0,96207.0,0.00586473]
[1736859439526,0.009,96208.0,96207.0,0.05136473]